bitfinex-derivatives/quotes_ETHF0:USTF0_20250905
["timestamp","ask_amount","ask_price","bid_price","bid_amount"]
[1757041937289,3.2078,4308.1,4307.1,0.04040359]
[1757041937597,3.2078,4307.6,4307.1,0.5288]
[1757041937790,3.2078,4307.6,4306.5,3.3287]
[1757041937991,3.2078,4307.6,4306.6,0.238]
[1757041938188,3.2078,4307.1,4306.6,0.2985]
[1757041938492,3.2078,4307.1,4306.5,0.3373]
[1757041938493,3.2078,4307.1,4306.1,0.7469]
[1757041938896,3.2078,4307.1,4306.2,0.2985]
[1757041939097,3.2078,4307.1,4306.2,0.5079]
[1757041939304,3.2078,4306.6,4306.1,0.4484]
[1757041939495,3.2078,4306.6,4306.5,0.1279]
[1757041939799,3.2078,4306.6,4306.1,0.2985]
[1757041940396,3.2078,4306.6,4306.3,0.2985]
[1757041941392,3.2078,4307.1,4306.5,0.1279]
[1757041941694,3.2078,4307.1,4306.6,0.2985]
[1757041941900,3.2078,4307.1,4306.5,0.4264]
[1757041942592,3.2078,4307.1,4306.5,0.3373]
[1757041942798,3.2078,4307.1,4307.0,0.1279]
[1757041943094,3.2078,4307.6,4307.0,0.8748]
[1757041943299,3.2078,4307.6,4306.6,3.2078]
[1757041943501,3.2078,4307.6,4306.5,0.4264]
[1757041943794,3.2078,4307.6,4306.5,0.6358]
[1757041945105,3.2078,4306.8,4306.0,0.3303]
[1757041945304,3.2078,4306.8,4306.3,0.239]
[1757041946205,3.2078,4306.8,4306.2,0.239]
[1757041946502,0.116,4306.7,4306.2,0.239]
[1757041946697,0.116,4306.7,4306.3,0.2985]
[1757041946899,0.116,4306.7,4306.0,0.1209]
[1757041947106,0.116,4306.7,4306.2,0.5375]
[1757041947402,0.116,4306.7,4306.3,0.2985]
[1757041948312,0.116,4306.7,4306.2,0.239]
[1757041948698,0.116,4306.7,4306.1,0.5375]
[1757041949503,0.116,4306.7,4306.1,0.7469]
[1757041950103,0.116,4306.7,4306.1,0.4484]
[1757041950306,0.116,4306.7,4306.6,0.2985]
[1757041950606,3.2078,4306.8,4306.7,0.2985]
[1757041950803,3.2078,4306.8,4306.7,0.5079]
[1757041950999,3.2078,4306.8,4306.5,0.1279]
[1757041951201,3.2078,4306.8,4306.6,0.2985]
[1757041951402,3.2078,4306.8,4306.7,0.2985]
[1757041951599,3.2078,4306.8,4306.7,0.7212]
[1757041952500,0.116,4307.2,4307.0,0.1279]
[1757041952700,0.116,4307.2,4307.1,0.7212]
[1757041953101,3.2078,4307.3,4307.2,0.2985]
[1757041953305,3.2078,4307.3,4307.2,0.5079]
[1757041953502,3.2078,4307.3,4307.2,0.7212]
[1757041955311,3.2078,4307.3,4307.2,0.2985]
[1757041955514,3.2078,4307.3,4307.0,0.4264]
[1757041958115,3.2078,4307.3,4307.1,0.2985]
[1757041958512,3.2078,4307.3,4307.0,0.1279]
[1757041958816,3.2078,4307.3,4307.1,0.2985]
[1757041959015,3.2078,4307.3,4307.0,0.1279]
[1757041959814,3.2078,4307.3,4306.9,0.2985]
[1757041960615,3.2078,4307.3,4307.0,0.1279]
[1757041960913,3.2078,4307.3,4307.1,0.2094]
[1757041961112,3.2078,4307.3,4307.2,0.7212]
[1757041962313,3.2078,4307.3,4307.2,0.2985]
[1757041963113,3.2078,4307.3,4307.2,0.5079]
[1757041963509,3.2078,4307.3,4307.2,0.7212]
[1757041963915,0.116,4307.7,4307.2,0.7212]
[1757041964220,0.116,4307.7,4307.6,0.7212]
[1757041964520,3.2078,4308.0,4307.7,0.2985]
[1757041964811,3.2078,4308.0,4307.9,0.5079]
[1757041965409,3.2078,4308.0,4307.9,0.7212]
[1757041969910,0.116,4308.3,4307.9,0.7212]
[1757041970116,0.116,4308.3,4308.2,0.7214]
[1757041970320,3.2078,4308.5,4308.3,0.3078]
[1757041970516,3.2078,4308.5,4308.4,0.9594]
[1757041970826,3.2078,4309.0,4308.6,0.1997]
[1757041971423,3.2078,4309.0,4308.8,0.1997]
[1757041971624,3.2078,4309.0,4308.9,0.5075]
[1757041973126,3.2078,4309.0,4308.9,0.7214]
[1757041973525,3.2078,4309.0,4308.5,0.1212]
[1757041973928,3.2078,4309.0,4308.5,0.3209]
[1757041974122,3.2078,4309.0,4308.7,0.3078]
[1757041974324,3.2078,4309.0,4308.5,0.3209]
[1757041974526,3.2078,4309.0,4308.7,0.1997]
[1757041974822,3.2078,4309.0,4308.6,0.1997]
[1757041975028,3.2078,4309.0,4308.5,0.1212]
[1757041975229,3.2078,4309.0,4308.6,0.1997]
[1757041975428,3.2078,4309.0,4308.9,0.5075]
[1757041975628,3.2078,4309.0,4308.9,0.7214]
[1757041977631,3.2078,4309.0,4308.9,0.3078]
[1757041982926,3.2078,4309.0,4308.9,0.5075]
[1757041987533,3.2078,4309.0,4308.9,0.3078]
[1757041987731,7.43988,4309.0,4308.0,0.1212]
[1757041987930,0.7068,4308.0,4307.3,3.2078]
[1757041988237,0.7068,4308.0,4307.4,0.238]
[1757041988433,0.3006,4307.9,4307.5,0.1212]
[1757041988629,0.7068,4307.9,4307.8,0.1997]
[1757041989637,0.7068,4307.9,4307.3,3.2078]
[1757041989934,0.7068,4307.6,4307.5,0.3078]
[1757041991632,0.4062,4307.6,4307.4,0.238]
[1757041991833,0.7068,4307.5,4307.4,0.238]
[1757041992137,0.4062,4307.5,4307.3,3.4458]
[1757041992337,0.7068,4307.4,4307.3,3.7536]
[1757041992637,0.7068,4307.4,4307.3,3.9533]
[1757041994135,0.116,4307.6,4307.3,3.8594]
[1757041994328,0.3265,4307.6,4307.5,0.8426]
[1757041994528,0.2105,4307.6,4307.5,0.8426]
[1757041995130,0.4062,4307.6,4307.5,0.8426]
[1757041997534,0.116,4307.8,4307.5,0.8426]
[1757041997735,0.116,4307.8,4307.7,0.4136]
[1757041997736,0.3265,4307.8,4307.7,0.4136]
[1757041997943,0.2105,4307.8,4307.7,0.7096]
[1757041998536,3.5164,4308.5,4307.7,0.4136]
[1757041998839,3.5164,4308.5,4307.8,0.296]
[1757041999040,0.8396,4308.4,4308.3,0.5014]
[1757041999446,0.531,4308.4,4308.3,0.7086]
[1757041999836,0.8396,4308.4,4308.3,0.7086]
[1757042000038,0.7236,4308.4,4308.3,0.7086]
[1757042000937,0.7236,4308.4,4308.3,0.5014]
[1757042007343,0.415,4308.4,4308.0,0.296]
[1757042007548,0.2147,4307.6,4307.5,0.8298]
[1757042007741,0.2147,4307.6,4307.5,1.0668]
[1757042008441,0.3073,4307.5,4307.3,3.2078]
[1757042008745,0.3073,4307.5,4307.0,0.1279]
[1757042008746,0.3073,4307.4,4307.2,0.296]
[1757042008948,0.3073,4307.2,4307.0,0.4239]
[1757042009142,0.7223,4307.1,4306.3,0.96292648]
[1757042009341,0.3073,4307.0,4306.7,0.296]
[1757042009541,0.3073,4306.7,4306.6,0.296]
[1757042009746,0.7223,4306.7,4306.6,0.296]
[1757042009951,0.7223,4306.7,4306.6,0.5014]
[1757042010250,0.7223,4306.7,4306.6,0.296]
[1757042010644,0.415,4306.7,4306.6,0.7086]
[1757042010844,0.2147,4306.7,4306.6,0.7086]
[1757042012044,3.2078,4306.9,4306.6,1.37552648]
[1757042012253,3.2078,4306.9,4306.8,0.7086]
[1757042012949,3.6228,4306.9,4306.8,0.7086]
[1757042016353,3.2078,4306.9,4306.8,0.7086]
[1757042016557,3.2078,4306.9,4306.8,4.94078999]
[1757042016752,3.2078,4306.9,4306.8,4.7086]
[1757042017057,0.116,4307.1,4307.0,0.8335]
[1757042017250,0.2147,4307.6,4307.5,0.5375]
[1757042017748,0.2147,4307.6,4307.5,0.8335]
[1757042019255,3.3238,4307.8,4307.5,0.5375]
[1757042019458,3.5385,4307.8,4307.7,0.4126]
[1757042019653,3.4225,4307.8,4307.7,0.7086]
[1757042019855,3.6228,4307.8,4307.7,0.7086]
[1757042020555,3.9301,4307.8,4307.7,0.7086]
[1757042023154,3.9301,4307.8,4307.7,0.5014]
[1757042023364,0.415,4307.1,4307.0,0.6263]
[1757042023655,0.7223,4307.1,4307.0,0.296]
[1757042023956,0.7223,4307.1,4307.0,0.5014]
[1757042024459,0.7223,4307.1,4307.0,0.6263]
[1757042024858,0.7223,4307.1,4307.0,0.8335]
[1757042025053,0.415,4307.1,4307.0,0.8335]
[1757042026055,0.2147,4307.1,4307.0,0.8335]
[1757042026258,3.2078,4307.3,4307.2,0.7086]
[1757042026558,3.4225,4307.3,4307.2,0.9456]
[1757042027457,3.2078,4307.3,4307.2,0.9456]
[1757042029363,3.4192,4307.3,4307.2,0.9456]
[1757042030661,3.926,4307.3,4307.2,0.533]
[1757042030867,0.7182,4307.2,4307.1,0.2909]
[1757042031258,0.7182,4307.2,4307.1,0.5048]
[1757042034356,0.7182,4307.2,4307.1,0.699]
[1757042034967,0.418,4307.2,4307.1,0.699]
[1757042036966,0.2114,4307.2,4307.1,0.699]
[1757042038964,3.2078,4307.3,4307.2,0.699]
[1757042039172,0.418,4308.0,4307.9,0.699]
[1757042040171,0.116,4308.2,4307.9,0.699]
[1757042040373,0.3274,4308.2,4308.1,0.699]
[1757042040574,0.534,4308.2,4308.1,0.699]
[1757042041273,0.418,4308.2,4308.1,0.699]
[1757042042577,0.116,4308.4,4308.2,0.2909]
[1757042042772,0.8342,4308.4,4308.3,0.699]
[1757042043273,0.7182,4308.4,4308.3,0.699]
[1757042043967,0.418,4308.4,4308.3,0.699]
[1757042047162,0.7182,4308.4,4308.0,0.4101]
[1757042047369,1.54501278,4308.1,4307.8,0.2909]
[1757042047563,0.3002,4308.0,4307.7,0.236]
[1757042047773,0.3002,4308.0,4307.9,0.5048]
[1757042047975,0.7182,4308.0,4307.9,0.5048]
[1757042049772,0.418,4308.0,4307.9,0.699]
[1757042053076,0.2114,4308.0,4307.9,0.699]
[1757042054679,0.418,4308.0,4307.9,0.699]
[1757042057277,0.418,4308.3,4308.2,0.699]
[1757042059179,0.7257,4308.3,4308.2,0.699]
[1757042060581,0.7257,4308.3,4308.2,0.5048]
[1757042060780,0.4047,4307.7,4307.6,0.5103]
[1757042061075,0.7126,4307.7,4307.6,0.7463]
[1757042061274,0.82681278,4307.9,4307.0,3.3327]
[1757042061275,0.3079,4307.6,4307.0,3.3327]
[1757042061480,0.4047,4307.1,4307.0,3.5432]
[1757042061683,0.4047,4307.1,4307.0,3.7458]
[1757042061879,0.4047,4307.1,4307.0,4.0456]
[1757042062374,0.82681278,4307.6,4307.0,3.7458]
[1757042062676,1.53941278,4307.6,4307.5,0.5103]
[1757042063978,0.7126,4307.6,4307.5,0.5103]
[1757042065086,0.7126,4307.6,4307.5,0.2998]
[1757042069181,0.7126,4307.6,4307.0,0.1249]
[1757042069382,0.82681278,4307.4,4307.1,0.2998]
[1757042069591,0.2054,4307.2,4307.1,0.7129]
[1757042069785,0.7126,4307.2,4306.5,0.1212]
[1757042069985,0.7126,4306.6,4306.5,0.6315]
[1757042072089,0.7126,4306.6,4306.5,0.8341]
[1757042072288,0.4047,4306.6,4306.5,0.8341]
[1757042072590,0.7126,4306.6,4306.5,0.8341]
[1757042072791,0.4047,4306.6,4306.5,0.8341]
[1757042073185,0.7126,4306.6,4306.5,0.8341]
[1757042074892,0.7126,4306.6,4306.5,0.6371]
[1757042075392,0.7126,4306.6,4306.5,0.8397]
[1757042075594,0.4047,4306.6,4306.5,0.8397]
[1757042076983,0.7126,4306.6,4306.5,0.5103]
[1757042077188,0.7126,4306.6,4306.5,0.2998]
[1757042077991,0.7126,4306.6,4306.5,0.5103]
[1757042078489,0.7126,4306.6,4306.5,0.6371]
[1757042078689,0.82681278,4306.8,4306.5,0.8397]
[1757042078895,0.236,4306.9,4306.8,0.2971]
[1757042078896,0.4414,4306.9,4306.8,0.2971]
[1757042079094,0.9586,4306.9,4306.8,0.5969]
[1757042079493,0.4047,4306.9,4306.8,0.5969]
[1757042080694,0.7226,4306.9,4306.8,0.5969]
[1757042086101,1.54941278,4306.9,4306.8,0.5969]
[1757042089001,1.54941278,4306.9,4306.5,0.1268]
[1757042089200,0.7172,4306.4,4306.1,0.3114]
[1757042089401,0.7172,4306.2,4305.9,0.23220999]
[1757042089597,3.2078,4306.3,4306.1,0.4113]
[1757042089795,3.2078,4306.3,4306.2,0.7227]
[1757042094604,3.2078,4306.3,4306.2,0.9587]
[1757042095596,3.4174,4306.3,4306.2,0.9587]
[1757042100497,0.2979,4307.0,4306.2,1.37665]
[1757042100710,0.2979,4307.0,4306.9,0.7227]
[1757042100711,0.7172,4307.0,4306.9,0.7227]
[1757042101406,3.93,4307.3,4307.1,0.7227]
[1757042101711,3.93,4307.3,4307.1,0.4113]
[1757042101904,3.93,4307.3,4307.2,0.7227]
[1757042102112,4.1396,4307.3,4307.2,0.7227]
[1757042102306,3.4174,4307.3,4307.2,0.7227]
[1757042102605,3.925,4307.3,4307.2,0.7227]
[1757042103818,3.4174,4307.3,4307.2,0.7227]
[1757042104315,3.2078,4307.3,4307.2,0.7227]
[1757042104701,0.722,4307.6,4307.5,0.5294]
[1757042105006,0.722,4307.6,4307.5,1.0768]
[1757042105207,1.4392,4307.6,4307.5,1.0768]
[1757042107910,0.9316,4307.6,4307.5,1.0768]
[1757042108116,1.4392,4307.6,4307.5,1.0768]
[1757042108813,1.4392,4307.6,4307.5,0.8408]
[1757042109015,1.4392,4307.6,4307.5,0.9587]
[1757042110107,1.4392,4307.6,4307.5,1.0768]
[1757042112918,1.1413,4307.6,4307.5,1.0768]
[1757042114416,1.4392,4307.6,4307.5,1.0768]
[1757042114720,1.4392,4307.6,4307.5,0.7585]
[1757042116520,1.4392,4307.6,4307.5,0.9587]
[1757042117218,1.4392,4307.6,4307.5,1.0768]
[1757042118520,1.1413,4307.6,4307.1,0.3162]
[1757042118713,0.4119,4307.2,4307.1,0.7337]
[1757042119022,0.199,4307.2,4307.1,0.9697]
[1757042119221,0.4296,4307.5,4307.1,0.6535]
[1757042119419,0.3149,4307.5,4307.4,0.7337]
[1757042119911,0.199,4307.5,4307.4,0.7337]
[1757042120312,0.722,4307.6,4307.5,0.8555]
[1757042120714,0.921,4307.6,4307.5,0.8555]
[1757042121215,0.722,4307.6,4307.5,5.0266354]
[1757042123011,0.722,4307.6,4307.5,5.2626354]
[1757042123426,0.15624894,4307.6,4307.5,9.4947854]
[1757042123718,0.1159,4307.9,4307.8,0.7337]
[1757042124220,0.5127,4308.4,4308.3,0.4175]
[1757042124418,0.7256,4308.4,4308.3,0.9697]
[1757042125315,0.5127,4308.4,4308.3,0.9697]
[1757042126216,0.3137,4308.4,4308.3,0.9697]
[1757042126414,0.1158,4308.7,4308.3,0.9697]
[1757042126415,0.4295,4308.7,4308.6,0.4175]
[1757042126615,0.4295,4308.7,4308.6,0.7337]
[1757042126616,0.3137,4308.7,4308.6,0.7337]
[1757042127120,0.5127,4308.7,4308.6,0.7337]
[1757042128414,0.3137,4308.7,4308.6,3.9415]
[1757042128612,0.6437,4309.0,4308.9,0.4175]
[1757042128910,0.7256,4308.2,4308.1,3.2078]
[1757042129116,5.6889354,4308.2,4308.1,3.2078]
[1757042131617,4.7256,4308.2,4308.1,3.2078]
[1757042137326,4.7256,4308.2,4308.0,0.236]
[1757042140721,4.7256,4308.2,4307.6,0.3162]
[1757042140926,0.5127,4307.7,4307.6,0.7337]
[1757042141229,0.7256,4307.7,4307.6,0.4175]
[1757042141427,0.4119,4307.4,4307.3,32.041]
[1757042141627,0.7256,4307.4,4307.3,32.041]
[1757042141832,0.7256,4307.4,4307.3,32.277]
[1757042142830,0.7256,4307.4,4307.3,32.5932]
[1757042143020,0.5127,4307.4,4307.3,32.5932]
[1757042143533,0.5331,4308.0,4307.9,0.2083]
[1757042143829,0.8468,4308.0,4307.9,0.4443]
[1757042145029,0.8468,4308.0,4307.9,0.236]
[1757042145627,0.8468,4308.0,4307.2,3.524]
[1757042145932,0.7256,4307.3,4307.2,3.2078]
[1757042146828,0.7256,4307.3,4307.2,3.4161]
[1757042147529,0.7256,4307.3,4307.2,3.6253]
[1757042147730,0.7256,4307.3,4307.2,3.9415]
[1757042148927,0.5127,4307.3,4307.2,3.9415]
[1757042149126,0.5127,4307.3,4307.2,4.1775]
[1757042150031,0.1159,4307.5,4307.2,4.1775]
[1757042150335,0.2985,4307.4,4307.3,0.7288]
[1757042150631,0.5017,4307.4,4307.3,0.7288]
[1757042151229,0.1159,4307.5,4307.4,0.3079]
[1757042151531,0.8288,4308.0,4307.9,0.2091]
[1757042151731,0.8288,4308.0,4307.9,0.9648]
[1757042152033,3.5063,4308.1,4307.9,0.6569]
[1757042152229,3.5063,4308.1,4308.0,0.7288]
[1757042152435,3.2078,4308.1,4308.0,0.7592]
[1757042153128,0.1159,4308.2,4308.0,0.7592]
[1757042153129,0.4144,4308.2,4308.1,0.3079]
[1757042153333,0.1159,4308.2,4308.1,1.6921354]
[1757042153635,0.426,4309.0,4308.2,0.4209]
[1757042153835,0.426,4309.0,4308.1,1.3811054]
[1757042153836,0.6292,4309.0,4308.9,0.693]
[1757042154033,0.6292,4309.0,4308.9,0.929]
[1757042155631,0.2985,4309.0,4308.9,0.929]
[1757042155832,0.5017,4309.0,4308.9,0.929]
[1757042156031,0.8351,4309.0,4308.9,0.6569]
[1757042156232,0.8351,4309.0,4308.9,0.4451]
[1757042156530,0.8351,4309.0,4308.9,0.6569]
[1757042156930,1.5783,4309.0,4308.9,0.6569]
[1757042158838,1.5783,4309.0,4308.4,3.2078]
[1757042158839,0.1275,4308.5,4308.4,3.2078]
[1757042159139,0.7076,4307.9,4307.8,0.4209]
[1757042159338,0.7076,4307.9,4307.8,0.6569]
[1757042163953,0.5017,4307.9,4307.8,0.929]
[1757042164247,0.2985,4308.4,4307.8,5.30683]
[1757042164546,0.5017,4308.4,4308.3,0.693]
[1757042164744,0.7076,4308.4,4308.3,0.2091]
[1757042164944,0.7076,4308.4,4308.3,0.236]
[1757042167056,0.7076,4308.4,4308.3,0.4451]
[1757042168653,0.7076,4308.4,4308.3,0.6569]
[1757042168853,0.7076,4308.4,4308.3,0.929]
[1757042169856,0.2985,4308.4,4308.3,0.929]
[1757042170157,0.5017,4308.4,4308.3,0.929]
[1757042170552,0.7076,4308.4,4308.3,0.6569]
[1757042171957,0.7076,4308.4,4308.3,0.929]
[1757042172262,0.7076,4308.4,4308.3,0.6569]
[1757042173765,0.7076,4308.4,4308.3,0.4451]
[1757042174061,0.7076,4308.4,4308.3,0.236]
[1757042174251,1.53438969,4308.4,4308.3,0.236]
[1757042175563,1.53438969,4308.4,4308.3,0.4451]
[1757042177363,1.53438969,4308.4,4308.3,0.236]
[1757042177552,0.5366,4307.5,4307.4,0.2091]
[1757042177753,1.66188969,4307.5,4307.4,0.236]
[1757042178062,1.66188969,4307.5,4307.4,0.4451]
[1757042178465,0.3149,4307.4,4307.3,0.236]
[1757042178659,0.7142,4307.4,4307.3,0.236]
[1757042179961,0.7142,4307.4,4307.3,0.6565]
[1757042180152,0.3149,4307.4,4307.3,0.929]
[1757042180867,3.2078,4307.9,4307.3,0.929]
[1757042181061,3.4046,4307.9,4307.8,0.2141]
[1757042181262,3.922,4307.9,4307.8,0.2141]
[1757042181464,3.922,4307.9,4307.8,0.6565]
[1757042182162,3.5227,4307.9,4307.8,0.9295]
[1757042182467,1.1066,4309.0,4307.9,0.273]
[1757042182468,0.8417,4308.5,4307.9,0.273]
[1757042182668,0.6391,4308.0,4307.9,0.6935]
[1757042183363,0.6391,4308.0,4307.9,0.4205]
[1757042183564,0.6391,4308.0,4307.9,0.236]
[1757042183565,0.5267,4308.0,4307.9,0.236]
[1757042183770,0.8416,4308.0,4307.9,0.4501]
[1757042184066,0.8416,4308.0,4307.9,0.236]
[1757042184456,0.8416,4308.0,4306.9,3.16887384]
[1757042184457,0.5267,4307.5,4306.9,3.16887384]
[1757042184660,0.5267,4307.5,4306.9,3.58937384]
[1757042184661,0.6391,4307.0,4306.9,3.58937384]
[1757042184860,0.6391,4307.0,4306.9,0.9295]
[1757042185871,0.6391,4307.0,4306.9,0.4205]
[1757042186172,0.6391,4307.0,4306.9,0.6565]
[1757042186363,0.8416,4307.0,4306.9,0.6565]
[1757042187370,0.8416,4307.0,4306.9,0.2141]
[1757042187571,0.8416,4307.0,4306.9,0.4501]
[1757042188873,0.8416,4307.0,4306.9,0.6565]
[1757042189573,0.5267,4307.0,4306.9,0.236]
[1757042189775,0.8416,4307.0,4306.9,0.236]
[1757042191870,0.8416,4307.0,4306.9,0.4501]
[1757042192066,0.8416,4307.0,4306.9,0.6565]
[1757042193068,0.3149,4307.0,4306.9,0.9295]
[1757042193270,0.1274,4307.5,4306.9,0.9295]
[1757042193271,0.1274,4307.5,4306.9,0.6565]
[1757042194170,0.3149,4307.4,4306.9,0.9295]
[1757042194569,0.3242,4307.5,4307.4,0.4205]
[1757042194877,0.5267,4307.5,4307.4,0.4501]
[1757042195178,0.8416,4307.5,4307.4,0.236]
[1757042196973,0.6391,4307.5,4307.4,0.9295]
[1757042197474,0.6391,4307.5,4307.4,0.6565]
[1757042197674,0.3149,4307.9,4307.4,0.9295]
[1757042197870,0.5117,4307.9,4307.8,0.4205]
[1757042198075,0.5117,4307.9,4307.8,0.6565]
[1757042198770,0.5117,4307.9,4307.8,0.9295]
[1757042198969,0.3149,4307.9,4307.8,4.1373]
[1757042199668,0.5117,4307.9,4307.8,4.1373]
[1757042199970,0.3149,4308.4,4308.3,0.4205]
[1757042200170,0.5117,4308.4,4308.3,0.9295]
[1757042202676,0.3149,4308.4,4308.3,0.9295]
[1757042202877,0.3149,4308.4,4308.3,4.1373]
[1757042203469,0.3149,4308.8,4308.4,0.273]
[1757042203672,0.5117,4308.9,4308.8,0.6935]
[1757042203873,0.5117,4308.9,4308.8,0.9295]
[1757042204982,0.5117,4308.9,4308.8,0.6565]
[1757042205377,0.7142,4308.9,4308.8,0.6565]
[1757042206481,0.7142,4308.9,4308.8,0.9295]
[1757042206683,1.8096,4308.9,4308.8,0.9295]
[1757042206873,1.8096,4308.9,4308.8,0.236]
[1757042207175,0.7142,4308.4,4308.3,0.2141]
[1757042207376,0.7142,4308.4,4308.3,0.236]
[1757042208381,0.7142,4308.4,4308.3,0.4501]
[1757042208885,0.7142,4308.4,4308.3,0.6625]
[1757042209084,0.2949,4308.8,4308.3,1.48927163]
[1757042209389,0.2949,4308.8,4308.7,1.52517163]
[1757042209585,0.2949,4308.8,4308.7,1.76117163]
[1757042210481,1.3903,4308.9,4308.8,0.2724]
[1757042210785,1.3903,4308.9,4308.8,0.6984]
[1757042210986,1.0954,4308.9,4308.8,0.6984]
[1757042212680,1.3903,4308.9,4308.8,0.6984]
[1757042212876,1.7974,4308.9,4308.8,0.2136]
[1757042213082,0.829,4308.5,4308.4,4.46057163]
[1757042213381,0.829,4308.5,4308.4,4.69657163]
[1757042214790,0.829,4308.5,4308.4,3.2078]
[1757042214985,0.829,4308.5,4308.4,3.4438]
[1757042215284,0.829,4308.5,4308.4,3.6574]
[1757042218390,0.829,4308.5,4308.4,3.8698]
[1757042219390,0.829,4308.5,4308.4,3.4214]
[1757042219585,0.829,4308.5,4308.4,3.6574]
[1757042220983,0.829,4308.5,4308.4,3.8698]
[1757042221186,0.829,4308.5,4308.4,4.1422]
[1757042221386,0.616,4308.5,4308.4,4.1422]
[1757042222286,0.829,4308.5,4308.4,3.8698]
[1757042222487,0.829,4308.5,4308.4,3.6574]
[1757042222993,0.2949,4308.4,4308.0,32.035]
[1757042223192,0.702,4308.1,4308.0,32.035]
[1757042223489,0.702,4308.1,4308.0,32.27]
[1757042223886,0.702,4308.1,4308.0,32.035]
[1757042224092,4.702,4308.1,4308.0,32.27]
[1757042225187,4.702,4308.1,4308.0,0.235]
[1757042225487,4.702,4308.1,4308.0,0.4486]
[1757042225679,0.702,4308.1,4308.0,0.661]
[1757042230092,0.702,4308.1,4308.0,0.235]
[1757042232495,0.702,4308.1,4308.0,0.4486]
[1757042233691,0.702,4308.1,4308.0,0.235]
[1757042236297,0.702,4308.1,4308.0,0.661]
[1757042236501,0.489,4308.1,4308.0,0.9334]
[1757042238190,1.7038,4308.1,4308.0,0.9334]
[1757042242498,1.9181,4308.1,4308.0,0.661]
[1757042247501,1.9181,4308.1,4308.0,0.4486]
[1757042248413,1.9181,4308.1,4308.0,0.235]
[1757042250403,0.1271,4307.5,4307.4,3.4101]
[1757042250612,0.8581,4307.5,4307.4,3.6451]
[1757042251106,0.8581,4307.5,4307.4,3.8462]
[1757042251711,0.8581,4307.5,4307.4,4.1184]
[1757042253504,0.8581,4307.5,4307.4,7.01427384]
[1757042253811,0.3083,4307.5,4307.4,7.01427384]
[1757042254013,0.3083,4307.9,4307.4,6.74207384]
[1757042254308,0.8581,4308.0,4307.9,0.2023]
[1757042254499,0.8581,4308.0,4307.9,0.6384]
[1757042254701,0.8581,4308.0,4307.9,0.9106]
[1757042255709,0.8581,4308.0,4307.9,0.6384]
[1757042257101,1.2148,4308.1,4308.0,0.6756]
[1757042257305,1.2148,4308.1,4308.0,1.75576066]
[1757042257604,1.2148,4308.1,4308.0,1.98788066]
[1757042257805,1.2148,4308.1,4308.0,1.75576066]
[1757042258617,1.2148,4308.1,4308.0,5.98788066]
[1757042258816,0.9426,4308.1,4308.0,8.42976066]
[1757042259009,0.3083,4308.8,4308.0,7.98628066]
[1757042259209,0.3083,4308.8,4308.7,4.17086066]
[1757042259410,0.3083,4308.9,4308.7,4.40586066]
[1757042259611,0.3083,4308.9,4308.7,4.82357066]
[1757042260508,0.127,4309.0,4308.7,4.82357066]
[1757042260714,0.127,4309.0,4308.7,3.4428]
[1757042260915,0.731,4308.8,4308.7,3.2078]
[1757042261211,0.731,4308.8,4308.7,3.4428]
[1757042263217,0.731,4308.8,4308.3,32.035]
[1757042263413,0.731,4308.4,4308.3,32.035]
[1757042263614,0.731,4308.4,4308.3,32.27]
[1757042264015,0.731,4308.4,4308.3,0.235]
[1757042269419,0.3938,4307.7,4307.6,3.2078]
[1757042269721,0.6954,4307.7,4307.6,3.4428]
[1757042270527,0.3016,4307.7,4307.6,3.4442]
[1757042270727,0.3016,4307.7,4307.6,3.4451]
[1757042271521,0.3016,4307.7,4307.6,3.4442]
[1757042275228,0.3016,4307.7,4307.6,3.4451]
[1757042277427,0.1208,4308.0,4307.6,3.86291]
[1757042277628,0.3197,4308.0,4307.6,3.86291]
[1757042277928,0.3016,4307.8,4307.7,0.96396066]
[1757042278116,0.3016,4307.8,4307.7,0.96536066]
[1757042281225,0.2486,4308.0,4307.8,0.4178]
[1757042281432,0.1278,4308.0,4307.9,0.2373]
[1757042281832,0.3016,4308.0,4307.9,0.2373]
[1757042282129,0.3016,4308.4,4308.3,0.0014]
[1757042282327,0.1271,4308.5,4308.4,0.41774]
[1757042282523,0.3259,4309.0,4308.5,0.0009]
[1757042282723,0.6275,4309.0,4308.9,3.2092]
[1757042282922,0.6275,4309.0,4308.9,3.4442]
[1757042283125,0.6275,4309.0,4308.9,3.86189]
[1757042283126,0.4286,4309.0,4308.9,3.86189]
[1757042284032,0.4286,4309.0,4308.9,3.86279]
[1757042284232,0.8224,4309.0,4308.9,3.4442]
[1757042284626,0.8224,4309.0,4308.9,3.4428]
[1757042285129,4.8224,4309.0,4308.9,3.2078]
[1757042285326,4.8224,4309.0,4308.9,3.4428]
[1757042285926,0.1208,4308.5,4308.1,3.2078]
[1757042286127,0.6954,4308.2,4308.1,3.2078]
[1757042286327,0.3016,4307.9,4307.5,4.49156066]
[1757042286521,0.3938,4307.7,4307.6,0.45]
[1757042286724,0.6954,4307.7,4307.6,0.215]
[1757042287029,0.6954,4307.7,4307.6,0.235]
[1757042290230,0.1208,4307.5,4307.3,32.033]